[Event "Live Chess"]
[Site "Chess.com"]
[Date "2021.02.10"]
[Round "1"]
[White "Mangonel"]
[Black "MechAnjin"]
[Result "1-0"]
[CurrentPosition "8/8/K7/1pQ5/1P3k2/8/8/7q b - -"]
[Timezone "UTC"]
[ECO "E00"]
[ECOUrl "https://www.chess.com/openings/Catalan-Opening-3...d5"]
[UTCDate "2021.02.10"]
[UTCTime "02:30:54"]
[WhiteElo "1780"]
[BlackElo "1539"]
[TimeControl "2100+2"]
[Termination "Mangonel won on time"]
[StartTime "02:30:54"]
[EndDate "2021.02.10"]
[EndTime "03:45:37"]
[Link "https://www.chess.com/live/game/6507734770"]

1. d4 {[%clk 0:34:50.9]} 1... Nf6 {[%clk 0:34:58.9]} 2. c4 {[%clk 0:34:37.5]} 2... e6 {[%clk 0:34:56.1]} 3. g3 {[%clk 0:34:37.9]} 3... d5 {[%clk 0:34:38]} 4. Nf3 {[%clk 0:34:28.3]} 4... c6 {[%clk 0:34:30.5]} 5. Nc3 {[%clk 0:33:57.8]} 5... Be7 {[%clk 0:34:22]} 6. Bg2 {[%clk 0:33:30.6]} 6... Nbd7 {[%clk 0:34:17.5]} 7. Qd3 {[%clk 0:32:31.4]} 7... b6 {[%clk 0:34:02.7]} 8. O-O {[%clk 0:32:15.6]} 8... O-O {[%clk 0:34:00.2]} 9. Rd1 {[%clk 0:30:30.5]} 9... Bb7 {[%clk 0:33:48.8]} 10. Bf4 {[%clk 0:24:59.9]} 10... h6 {[%clk 0:32:10.6]} 11. e4 {[%clk 0:22:05.7]} 11... dxe4 {[%clk 0:32:00.7]} 12. Nxe4 {[%clk 0:22:07.6]} 12... Nxe4 {[%clk 0:31:44.7]} 13. Qxe4 {[%clk 0:22:05.2]} 13... Nf6 {[%clk 0:31:36.1]} 14. Qe2 {[%clk 0:21:55]} 14... Qc8 {[%clk 0:31:20.6]} 15. Rac1 {[%clk 0:19:52.2]} 15... Re8 {[%clk 0:30:12.7]} 16. Ne5 {[%clk 0:17:46.9]} 16... c5 {[%clk 0:29:53.6]} 17. d5 {[%clk 0:17:38.6]} 17... exd5 {[%clk 0:29:43.4]} 18. cxd5 {[%clk 0:17:33.9]} 18... Bd6 {[%clk 0:29:24]} 19. Rc3 {[%clk 0:15:22.9]} 19... Qc7 {[%clk 0:29:11.4]} 20. Re3 {[%clk 0:15:00.9]} 20... a6 {[%clk 0:26:23.9]} 21. Nd3 {[%clk 0:11:10.3]} 21... c4 {[%clk 0:25:12.4]} 22. Bxd6 {[%clk 0:11:05.7]} 22... Qxd6 {[%clk 0:24:57.3]} 23. Nf4 {[%clk 0:09:52.2]} 23... b5 {[%clk 0:24:25.8]} 24. Qd2 {[%clk 0:05:11.5]} 24... Rxe3 {[%clk 0:23:45.8]} 25. Qxe3 {[%clk 0:04:51.4]} 25... Re8 {[%clk 0:23:33.9]} 26. Qd4 {[%clk 0:04:09.5]} 26... Rd8 {[%clk 0:18:35.2]} 27. Kf1 {[%clk 0:03:52.5]} 27... Bc8 {[%clk 0:15:55.2]} 28. Ne2 {[%clk 0:01:57.7]} 28... Bf5 {[%clk 0:15:08.8]} 29. Nc3 {[%clk 0:00:54.3]} 29... Re8 {[%clk 0:15:03.7]} 30. Kg1 {[%clk 0:00:13.5]} 30... Bd3 {[%clk 0:13:11.2]} 31. a3 {[%clk 0:00:14.4]} 31... Re5 {[%clk 0:11:06.9]} 32. b4 {[%clk 0:00:15.4]} 32... Ne8 {[%clk 0:09:12.6]} 33. Qc5 {[%clk 0:00:12]} 33... Kh7 {[%clk 0:07:40.1]} 34. Qc6 {[%clk 0:00:11.2]} 34... Re7 {[%clk 0:04:04.3]} 35. h4 {[%clk 0:00:04.2]} 35... Kg8 {[%clk 0:03:57.3]} 36. Qxd6 {[%clk 0:00:02.7]} 36... Nxd6 {[%clk 0:03:54.7]} 37. Bf1 {[%clk 0:00:03.8]} 37... Bxf1 {[%clk 0:03:45.9]} 38. Kxf1 {[%clk 0:00:05.7]} 38... Kf8 {[%clk 0:03:46]} 39. Re1 {[%clk 0:00:07]} 39... Rxe1+ {[%clk 0:03:39.5]} 40. Kxe1 {[%clk 0:00:08.9]} 40... Ke7 {[%clk 0:03:37.7]} 41. Ke2 {[%clk 0:00:10.3]} 41... Kf6 {[%clk 0:03:33]} 42. Ke3 {[%clk 0:00:10.4]} 42... Ke5 {[%clk 0:03:26.6]} 43. f4+ {[%clk 0:00:10.3]} 43... Kf5 {[%clk 0:03:14.2]} 44. Kd4 {[%clk 0:00:10.7]} 44... h5 {[%clk 0:02:39.2]} 45. Kc5 {[%clk 0:00:10.9]} 45... Ne4+ {[%clk 0:02:23.8]} 46. Nxe4 {[%clk 0:00:09.9]} 46... Kxe4 {[%clk 0:02:23]} 47. d6 {[%clk 0:00:10.7]} 47... c3 {[%clk 0:02:23.8]} 48. d7 {[%clk 0:00:09.7]} 48... c2 {[%clk 0:02:24.9]} 49. d8=Q {[%clk 0:00:06.7]} 49... c1=Q+ {[%clk 0:02:25.2]} 50. Kb6 {[%clk 0:00:07.8]} 50... Qxa3 {[%clk 0:02:10.1]} 51. Qe7+ {[%clk 0:00:05.4]} 51... Kf3 {[%clk 0:01:59.1]} 52. Qb7+ {[%clk 0:00:04.5]} 52... Kxg3 {[%clk 0:01:49.7]} 53. Qxf7 {[%clk 0:00:04.4]} 53... Kxh4 {[%clk 0:01:44.3]} 54. Qxg7 {[%clk 0:00:04.4]} 54... Qg3 {[%clk 0:00:42.2]} 55. Qxg3+ {[%clk 0:00:04.3]} 55... Kxg3 {[%clk 0:00:42.1]} 56. f5 {[%clk 0:00:05.5]} 56... h4 {[%clk 0:00:39.8]} 57. f6 {[%clk 0:00:06.8]} 57... h3 {[%clk 0:00:40.8]} 58. f7 {[%clk 0:00:08.2]} 58... h2 {[%clk 0:00:41.8]} 59. f8=Q {[%clk 0:00:09.2]} 59... h1=Q {[%clk 0:00:42]} 60. Qg7+ {[%clk 0:00:07.2]} 60... Kf4 {[%clk 0:00:36.3]} 61. Qf6+ {[%clk 0:00:07.1]} 61... Ke3 {[%clk 0:00:25]} 62. Qe6+ {[%clk 0:00:05.8]} 62... Kf4 {[%clk 0:00:20.2]} 63. Qd6+ {[%clk 0:00:06.2]} 63... Ke3 {[%clk 0:00:15.8]} 64. Qc5+ {[%clk 0:00:06.6]} 64... Kf4 {[%clk 0:00:12.1]} 65. Kxa6 {[%clk 0:00:07.4]} 1-0

[Event "Live Chess"]
[Site "Chess.com"]
[Date "2021.02.10"]
[Round "1"]
[White "KingSmasher35"]
[Black "GM_Fobby_Bischer"]
[Result "1/2-1/2"]
[CurrentPosition "8/2p2p2/3p4/p2P1k2/2P4p/1P2KP1P/8/8 w - -"]
[Timezone "UTC"]
[ECO "A45"]
[ECOUrl "https://www.chess.com/openings/Indian-Game"]
[UTCDate "2021.02.10"]
[UTCTime "02:31:09"]
[WhiteElo "1785"]
[BlackElo "1718"]
[TimeControl "2100+2"]
[Termination "Game drawn by agreement"]
[StartTime "02:31:09"]
[EndDate "2021.02.10"]
[EndTime "03:22:56"]
[Link "https://www.chess.com/live/game/6507735258"]

1. d4 {[%clk 0:34:56.9]} 1... Nf6 {[%clk 0:35:00.1]} 2. Bf4 {[%clk 0:34:53.9]} 2... g6 {[%clk 0:34:55.6]} 3. e3 {[%clk 0:34:49]} 3... Bg7 {[%clk 0:34:54.4]} 4. Nf3 {[%clk 0:34:46.8]} 4... O-O {[%clk 0:34:53.7]} 5. c4 {[%clk 0:34:45]} 5... d6 {[%clk 0:34:53]} 6. h3 {[%clk 0:34:41.5]} 6... Bf5 {[%clk 0:34:50.5]} 7. Bd3 {[%clk 0:34:17.5]} 7... Bxd3 {[%clk 0:34:14.7]} 8. Qxd3 {[%clk 0:34:15.8]} 8... Nbd7 {[%clk 0:34:15.3]} 9. Qb3 {[%clk 0:33:20.1]} 9... b6 {[%clk 0:33:50]} 10. O-O {[%clk 0:33:01]} 10... Re8 {[%clk 0:33:37.1]} 11. Nc3 {[%clk 0:32:10.4]} 11... Nh5 {[%clk 0:32:43.7]} 12. Bh2 {[%clk 0:31:56.8]} 12... e5 {[%clk 0:32:27.4]} 13. Rfe1 {[%clk 0:31:13.8]} 13... exd4 {[%clk 0:29:51.5]} 14. exd4 {[%clk 0:31:07.6]} 14... Nhf6 {[%clk 0:27:02.7]} 15. Rxe8+ {[%clk 0:30:43]} 15... Qxe8 {[%clk 0:27:02.5]} 16. Re1 {[%clk 0:30:37.3]} 16... Qd8 {[%clk 0:25:57.6]} 17. Qc2 {[%clk 0:28:54.8]} 17... Nb8 {[%clk 0:25:33.8]} 18. d5 {[%clk 0:26:55.7]} 18... a6 {[%clk 0:24:40.1]} 19. Qe2 {[%clk 0:25:51.8]} 19... Nbd7 {[%clk 0:23:56.8]} 20. Bf4 {[%clk 0:23:22.3]} 20... b5 {[%clk 0:23:30.9]} 21. b3 {[%clk 0:21:38.4]} 21... bxc4 {[%clk 0:21:41.5]} 22. bxc4 {[%clk 0:20:46.5]} 22... Nh5 {[%clk 0:21:25]} 23. Bd2 {[%clk 0:20:40.4]} 23... Ne5 {[%clk 0:21:13.9]} 24. Nxe5 {[%clk 0:19:56.7]} 24... Bxe5 {[%clk 0:21:10.5]} 25. Rb1 {[%clk 0:18:16.8]} 25... Nf4 {[%clk 0:20:09.5]} 26. Bxf4 {[%clk 0:17:27]} 26... Bxf4 {[%clk 0:20:09]} 27. Qe4 {[%clk 0:16:32.2]} 27... Be5 {[%clk 0:19:55]} 28. Ne2 {[%clk 0:15:26.7]} 28... Qe8 {[%clk 0:19:44.9]} 29. Qd3 {[%clk 0:15:05.9]} 29... Rb8 {[%clk 0:19:37.1]} 30. Rxb8 {[%clk 0:14:46.2]} 30... Qxb8 {[%clk 0:19:37]} 31. Qb3 {[%clk 0:14:37.2]} 31... Qxb3 {[%clk 0:18:08.4]} 32. axb3 {[%clk 0:14:34.1]} 32... g5 {[%clk 0:17:24.1]} 33. f3 {[%clk 0:14:27.3]} 33... h5 {[%clk 0:17:05.9]} 34. Kf2 {[%clk 0:14:09.2]} 34... Kg7 {[%clk 0:16:50.4]} 35. Ke3 {[%clk 0:14:04.7]} 35... Kg6 {[%clk 0:15:54.4]} 36. Nd4 {[%clk 0:13:49.9]} 36... Bxd4+ {[%clk 0:15:41.5]} 37. Kxd4 {[%clk 0:13:47.5]} 37... Kf5 {[%clk 0:15:38.8]} 38. Ke3 {[%clk 0:09:52.9]} 38... Ke5 {[%clk 0:13:47.7]} 39. g3 {[%clk 0:09:32.9]} 39... a5 {[%clk 0:13:27.4]} 40. Kd3 {[%clk 0:09:09.5]} 40... h4 {[%clk 0:13:16.8]} 41. gxh4 {[%clk 0:08:57.3]} 41... gxh4 {[%clk 0:13:14.1]} 42. Ke3 {[%clk 0:08:48.5]} 42... Kf5 {[%clk 0:12:52.8]} 1/2-1/2

[Event "Live Chess"]
[Site "Chess.com"]
[Date "2021.02.10"]
[Round "1"]
[White "andrewaballantyne"]
[Black "GiorgosTsolias"]
[Result "0-1"]
[CurrentPosition "8/8/p7/1p1p1p1p/1P5P/P3kPK1/8/8 w - -"]
[Timezone "UTC"]
[ECO "C54"]
[ECOUrl "https://www.chess.com/openings/Giuoco-Piano-Game-Center-Attack-5...exd4-6.cxd4-Bb4-7.Bd2"]
[UTCDate "2021.02.10"]
[UTCTime "02:31:21"]
[WhiteElo "1347"]
[BlackElo "1673"]
[TimeControl "2100+2"]
[Termination "GiorgosTsolias won on time"]
[StartTime "02:31:21"]
[EndDate "2021.02.10"]
[EndTime "03:35:22"]
[Link "https://www.chess.com/live/game/6507736502"]

1. e4 {[%clk 0:35:00.1]} 1... e5 {[%clk 0:34:13.9]} 2. Nf3 {[%clk 0:34:51.2]} 2... Nc6 {[%clk 0:34:12.4]} 3. Bc4 {[%clk 0:34:46.4]} 3... Bc5 {[%clk 0:34:08.2]} 4. c3 {[%clk 0:34:40.9]} 4... Nf6 {[%clk 0:34:02.3]} 5. d4 {[%clk 0:34:39.6]} 5... exd4 {[%clk 0:34:01]} 6. cxd4 {[%clk 0:34:41.5]} 6... Bb4+ {[%clk 0:33:58]} 7. Bd2 {[%clk 0:34:39.2]} 7... Bxd2+ {[%clk 0:33:56]} 8. Nbxd2 {[%clk 0:34:38.9]} 8... d5 {[%clk 0:33:55.6]} 9. exd5 {[%clk 0:34:21.5]} 9... Nxd5 {[%clk 0:33:54.2]} 10. O-O {[%clk 0:33:26]} 10... O-O {[%clk 0:33:43.5]} 11. h3 {[%clk 0:32:09.2]} 11... Nb6 {[%clk 0:29:35.3]} 12. Re1 {[%clk 0:19:43]} 12... Nxc4 {[%clk 0:26:35.9]} 13. Nxc4 {[%clk 0:19:30.4]} 13... Be6 {[%clk 0:25:18.6]} 14. Nce5 {[%clk 0:17:11.8]} 14... Bd5 {[%clk 0:24:57.4]} 15. Rc1 {[%clk 0:13:27.1]} 15... f6 {[%clk 0:23:55.1]} 16. Nxc6 {[%clk 0:12:34.2]} 16... Bxc6 {[%clk 0:23:47.1]} 17. Rc5 {[%clk 0:11:52.8]} 17... Bd5 {[%clk 0:22:45.8]} 18. Qc2 {[%clk 0:10:21.8]} 18... c6 {[%clk 0:22:13.2]} 19. Rc3 {[%clk 0:08:36.9]} 19... Qd7 {[%clk 0:18:22.9]} 20. Rce3 {[%clk 0:07:24.5]} 20... Rae8 {[%clk 0:17:47.5]} 21. Qe2 {[%clk 0:04:04.9]} 21... Bxf3 {[%clk 0:15:37.4]} 22. Qxf3 {[%clk 0:03:12.9]} 22... Rxe3 {[%clk 0:15:21.9]} 23. Qxe3 {[%clk 0:03:09.4]} 23... Rd8 {[%clk 0:13:44]} 24. a3 {[%clk 0:02:17.2]} 24... Kf8 {[%clk 0:13:28.3]} 25. b4 {[%clk 0:01:58]} 25... Re8 {[%clk 0:13:18.7]} 26. Qxe8+ {[%clk 0:00:59.6]} 26... Qxe8 {[%clk 0:13:19.7]} 27. Rxe8+ {[%clk 0:01:00.9]} 27... Kxe8 {[%clk 0:13:20.4]} 28. Kf1 {[%clk 0:01:02.2]} 28... Ke7 {[%clk 0:12:49.1]} 29. Ke2 {[%clk 0:01:02.6]} 29... Kd6 {[%clk 0:12:47]} 30. Kd3 {[%clk 0:01:01.1]} 30... Kd5 {[%clk 0:11:45.7]} 31. f3 {[%clk 0:01:00.2]} 31... b5 {[%clk 0:11:41.1]} 32. g4 {[%clk 0:00:50.8]} 32... g6 {[%clk 0:10:38.8]} 33. h4 {[%clk 0:00:42.1]} 33... h5 {[%clk 0:09:56.3]} 34. gxh5 {[%clk 0:00:22]} 34... gxh5 {[%clk 0:09:55.1]} 35. Kc3 {[%clk 0:00:19.1]} 35... Ke6 {[%clk 0:09:39.6]} 36. Kd3 {[%clk 0:00:19.2]} 36... Kf5 {[%clk 0:09:34]} 37. Ke3 {[%clk 0:00:18.9]} 37... a6 {[%clk 0:09:30.4]} 38. Kf2 {[%clk 0:00:10.5]} 38... Kf4 {[%clk 0:09:27.7]} 39. Kg2 {[%clk 0:00:08.6]} 39... Ke3 {[%clk 0:09:21.6]} 40. Kg3 {[%clk 0:00:08.2]} 40... f5 {[%clk 0:09:05.3]} 41. d5 {[%clk 0:00:03]} 41... cxd5 {[%clk 0:09:04.2]} 0-1

[Event "Live Chess"]
[Site "Chess.com"]
[Date "2021.02.10"]
[Round "1"]
[White "thedarkbishop"]
[Black "Bruce_Hedman"]
[Result "1-0"]
[CurrentPosition "2qr4/R5Qk/p1p3p1/4p2p/4P3/2N1B1P1/PPn4P/7K b - -"]
[Timezone "UTC"]
[ECO "B33"]
[ECOUrl "https://www.chess.com/openings/Sicilian-Defense-Open-3...cxd4-4.Nxd4"]
[UTCDate "2021.02.10"]
[UTCTime "02:31:32"]
[WhiteElo "1680"]
[BlackElo "1392"]
[TimeControl "2100+2"]
[Termination "thedarkbishop won by checkmate"]
[StartTime "02:31:32"]
[EndDate "2021.02.10"]
[EndTime "03:29:20"]
[Link "https://www.chess.com/live/game/6507736694"]

1. e4 {[%clk 0:34:52.3]} 1... c5 {[%clk 0:34:58.6]} 2. Nf3 {[%clk 0:34:44.6]} 2... Nc6 {[%clk 0:34:57.1]} 3. d4 {[%clk 0:34:28.8]} 3... cxd4 {[%clk 0:34:43.8]} 4. Nxd4 {[%clk 0:34:25.2]} 4... d6 {[%clk 0:34:37.9]} 5. Bb5 {[%clk 0:33:30.2]} 5... Bd7 {[%clk 0:34:18.8]} 6. O-O {[%clk 0:32:51.4]} 6... Nf6 {[%clk 0:34:08.8]} 7. Nc3 {[%clk 0:32:37.6]} 7... a6 {[%clk 0:33:05.8]} 8. Bxc6 {[%clk 0:31:09.4]} 8... Bxc6 {[%clk 0:32:57.4]} 9. Nxc6 {[%clk 0:30:17.6]} 9... bxc6 {[%clk 0:32:43.6]} 10. Be3 {[%clk 0:28:20.4]} 10... g6 {[%clk 0:32:23.7]} 11. Qe2 {[%clk 0:26:56]} 11... Bg7 {[%clk 0:31:18.9]} 12. f4 {[%clk 0:25:47.9]} 12... e5 {[%clk 0:28:45.6]} 13. fxe5 {[%clk 0:25:03.4]} 13... dxe5 {[%clk 0:28:34.8]} 14. Rad1 {[%clk 0:24:27.7]} 14... Qc7 {[%clk 0:27:58.1]} 15. Bg5 {[%clk 0:21:45.9]} 15... Nd7 {[%clk 0:25:08.8]} 16. Kh1 {[%clk 0:20:53.8]} 16... O-O {[%clk 0:23:42.2]} 17. Qg4 {[%clk 0:17:55.5]} 17... Nc5 {[%clk 0:22:33.1]} 18. Be3 {[%clk 0:16:15.5]} 18... Ne6 {[%clk 0:20:57.3]} 19. Rf2 {[%clk 0:14:59.9]} 19... Rad8 {[%clk 0:19:17.9]} 20. Rfd2 {[%clk 0:14:18.3]} 20... Rxd2 {[%clk 0:19:10.4]} 21. Rxd2 {[%clk 0:14:11.7]} 21... h5 {[%clk 0:17:34.7]} 22. Qd1 {[%clk 0:13:53]} 22... Nf4 {[%clk 0:14:09]} 23. Rd7 {[%clk 0:12:30.3]} 23... Qc8 {[%clk 0:13:51.4]} 24. Bc5 {[%clk 0:11:56.2]} 24... Re8 {[%clk 0:13:21.5]} 25. g3 {[%clk 0:11:14.8]} 25... Ne6 {[%clk 0:13:09.5]} 26. Be3 {[%clk 0:09:38.4]} 26... Nd4 {[%clk 0:12:02.5]} 27. Ra7 {[%clk 0:08:41.3]} 27... Rd8 {[%clk 0:10:05.5]} 28. Qf1 {[%clk 0:08:17.9]} 28... Nxc2 {[%clk 0:07:51.1]} 29. Qxf7+ {[%clk 0:07:56.4]} 29... Kh7 {[%clk 0:06:30.3]} 30. Qxg7# {[%clk 0:07:55.3]} 1-0

[Event "Live Chess"]
[Site "Chess.com"]
[Date "2021.02.10"]
[Round "1"]
[White "night_breeze"]
[Black "malletpercussion"]
[Result "0-1"]
[CurrentPosition "8/8/7p/6k1/8/4K2P/5p2/8 b - -"]
[Timezone "UTC"]
[ECO "B50"]
[ECOUrl "https://www.chess.com/openings/Sicilian-Defense-2.Nf3-d6"]
[UTCDate "2021.02.10"]
[UTCTime "02:31:20"]
[WhiteElo "1427"]
[BlackElo "1556"]
[TimeControl "2100+2"]
[Termination "malletpercussion won by resignation"]
[StartTime "02:31:20"]
[EndDate "2021.02.10"]
[EndTime "03:43:30"]
[Link "https://www.chess.com/live/game/6507736993"]

1. e4 {[%clk 0:35:00.2]} 1... c5 {[%clk 0:34:53.4]} 2. Nf3 {[%clk 0:34:55.4]} 2... d6 {[%clk 0:34:47.4]} 3. Nc3 {[%clk 0:34:48.8]} 3... e6 {[%clk 0:34:29.5]} 4. a3 {[%clk 0:33:28]} 4... Nf6 {[%clk 0:34:15.5]} 5. b4 {[%clk 0:31:22.2]} 5... b6 {[%clk 0:33:41.4]} 6. Bb2 {[%clk 0:30:32.2]} 6... Be7 {[%clk 0:33:05.3]} 7. Bb5+ {[%clk 0:29:19.3]} 7... Bd7 {[%clk 0:32:43.2]} 8. O-O {[%clk 0:29:04.5]} 8... O-O {[%clk 0:31:52.5]} 9. Re1 {[%clk 0:26:18.9]} 9... a6 {[%clk 0:29:46.2]} 10. Bxd7 {[%clk 0:25:25.8]} 10... Nbxd7 {[%clk 0:29:33.6]} 11. e5 {[%clk 0:23:46.8]} 11... dxe5 {[%clk 0:29:21.1]} 12. Nxe5 {[%clk 0:23:47]} 12... Nxe5 {[%clk 0:28:36.3]} 13. Rxe5 {[%clk 0:23:16.4]} 13... cxb4 {[%clk 0:28:18.8]} 14. axb4 {[%clk 0:21:40.2]} 14... Bxb4 {[%clk 0:27:45.5]} 15. d4 {[%clk 0:16:53.8]} 15... Qd6 {[%clk 0:25:40.9]} 16. Ne4 {[%clk 0:15:18.9]} 16... Nxe4 {[%clk 0:25:08]} 17. Rxe4 {[%clk 0:15:13.3]} 17... Rfc8 {[%clk 0:20:21.5]} 18. Qd3 {[%clk 0:09:12.8]} 18... Ba5 {[%clk 0:16:23.8]} 19. c4 {[%clk 0:06:35]} 19... Qc7 {[%clk 0:14:56.7]} 20. c5 {[%clk 0:06:07.7]} 20... bxc5 {[%clk 0:14:36.5]} 21. dxc5 {[%clk 0:05:28.1]} 21... Qxc5 {[%clk 0:13:55.2]} 22. Re5 {[%clk 0:05:27.7]} 22... Qb6 {[%clk 0:11:37.9]} 23. Bd4 {[%clk 0:04:48.3]} 23... Qb4 {[%clk 0:10:36]} 24. Rexa5 {[%clk 0:04:19.7]} 24... Rd8 {[%clk 0:07:35.4]} 25. Rxa6 {[%clk 0:03:52.6]} 25... Rxa6 {[%clk 0:06:57.8]} 26. Rxa6 {[%clk 0:02:29]} 26... h6 {[%clk 0:05:32.6]} 27. h3 {[%clk 0:02:18.5]} 27... Qxd4 {[%clk 0:04:58.4]} 28. Qxd4 {[%clk 0:01:30.4]} 28... Rxd4 {[%clk 0:04:56.8]} 29. Ra7 {[%clk 0:01:30.9]} 29... f5 {[%clk 0:04:47.8]} 30. g3 {[%clk 0:01:28.4]} 30... Kh7 {[%clk 0:04:40.9]} 31. Re7 {[%clk 0:01:29]} 31... Rd6 {[%clk 0:04:37.9]} 32. f4 {[%clk 0:01:27.6]} 32... Kg6 {[%clk 0:04:32]} 33. Kf2 {[%clk 0:01:20.4]} 33... Kf6 {[%clk 0:04:19.1]} 34. Ra7 {[%clk 0:01:14.4]} 34... Rd3 {[%clk 0:04:04.7]} 35. Rb7 {[%clk 0:00:53.1]} 35... g5 {[%clk 0:04:00.2]} 36. Rh7 {[%clk 0:00:49.3]} 36... Kg6 {[%clk 0:03:56.5]} 37. Re7 {[%clk 0:00:48.4]} 37... Rd6 {[%clk 0:03:45.8]} 38. Ke3 {[%clk 0:00:27.4]} 38... gxf4+ {[%clk 0:03:27.1]} 39. Kxf4 {[%clk 0:00:27.3]} 39... Kf6 {[%clk 0:03:10]} 40. Rh7 {[%clk 0:00:25.9]} 40... e5+ {[%clk 0:02:48.4]} 41. Ke3 {[%clk 0:00:14.9]} 41... Kg6 {[%clk 0:02:23.6]} 42. Re7 {[%clk 0:00:15]} 42... Rd5 {[%clk 0:02:14.5]} 43. Re6+ {[%clk 0:00:11]} 43... Kh5 {[%clk 0:02:05]} 44. Rf6 {[%clk 0:00:06.8]} 44... Kg5 {[%clk 0:01:53.8]} 45. Re6 {[%clk 0:00:03.5]} 45... f4+ {[%clk 0:01:42.1]} 46. gxf4+ {[%clk 0:00:04.7]} 46... exf4+ {[%clk 0:01:40.9]} 47. Ke4 {[%clk 0:00:05.6]} 47... Rb5 {[%clk 0:01:32.5]} 48. Re5+ {[%clk 0:00:03.3]} 48... Rxe5+ {[%clk 0:01:31]} 49. Kxe5 {[%clk 0:00:05.2]} 49... f3 {[%clk 0:01:30.6]} 50. Ke4 {[%clk 0:00:07.1]} 50... f2 {[%clk 0:01:31.4]} 51. Ke3 {[%clk 0:00:09]} 0-1

[Event "Live Chess"]
[Site "Chess.com"]
[Date "2021.02.10"]
[Round "1"]
[White "rimus11"]
[Black "figsnoring"]
[Result "1-0"]
[CurrentPosition "r1br2kQ/p1p1qp2/1pn1pnp1/8/2BPP1P1/2N2N2/PP3P2/2KR3R b - -"]
[Timezone "UTC"]
[ECO "D80"]
[ECOUrl "https://www.chess.com/openings/Grunfeld-Defense-Stockholm-Variation"]
[UTCDate "2021.02.10"]
[UTCTime "02:31:36"]
[WhiteElo "1462"]
[BlackElo "1293"]
[TimeControl "2100+2"]
[Termination "rimus11 won by checkmate"]
[StartTime "02:31:36"]
[EndDate "2021.02.10"]
[EndTime "02:49:24"]
[Link "https://www.chess.com/live/game/6507737153"]

1. d4 {[%clk 0:30:19.8]} 1... Nf6 {[%clk 0:34:57.8]} 2. c4 {[%clk 0:30:17.1]} 2... g6 {[%clk 0:34:56.7]} 3. Nc3 {[%clk 0:29:36.9]} 3... d5 {[%clk 0:34:55]} 4. Bg5 {[%clk 0:29:15.7]} 4... Bg7 {[%clk 0:34:33.4]} 5. Nf3 {[%clk 0:28:55.1]} 5... dxc4 {[%clk 0:33:59.7]} 6. e4 {[%clk 0:28:35.3]} 6... O-O {[%clk 0:33:05.5]} 7. Bxc4 {[%clk 0:27:51.4]} 7... h6 {[%clk 0:32:47.9]} 8. Be3 {[%clk 0:27:17]} 8... Nc6 {[%clk 0:31:03.3]} 9. Qd2 {[%clk 0:26:35.9]} 9... e6 {[%clk 0:30:54.4]} 10. O-O-O {[%clk 0:26:29.6]} 10... Qe7 {[%clk 0:30:25.2]} 11. Bxh6 {[%clk 0:26:05.1]} 11... Rd8 {[%clk 0:30:16.7]} 12. Bxg7 {[%clk 0:26:00.5]} 12... Kxg7 {[%clk 0:30:16.3]} 13. h4 {[%clk 0:25:32.2]} 13... b6 {[%clk 0:29:32.5]} 14. h5 {[%clk 0:25:00.2]} 14... Nxh5 {[%clk 0:29:24.7]} 15. g4 {[%clk 0:24:53.8]} 15... Nf6 {[%clk 0:29:13.1]} 16. Qh6+ {[%clk 0:24:36.1]} 16... Kg8 {[%clk 0:28:53]} 17. Qh8# {[%clk 0:24:33.7]} 1-0